[Event "Titled Tuesday Blitz July 26 Late 2022"]
[White "Oye-Stromberg, Alexander"]
[Black "Barria Zuniga, Daniel"]
[WhiteFideId "1525999"]
[BlackFideId "3400816"]
[WhiteElo "1958"]
[BlackElo "2414"]
[Result "0-1"]
[Round "03"]
[TimeControl "180+1"]
[Date "2022.07.27"]
[WhiteClock "0:00:02"]
[BlackClock "0:00:06"]

1. d4 {[%clk 0:03:00]}  g6 {[%clk 0:02:43]} 2. e4 {[%clk 0:02:59]}  Bg7 {[%clk 0:02:43]} 3. Nf3 {[%clk 0:03:00]}  c5 {[%clk 0:02:44]} 4. Be3 {[%clk 0:02:57]}  Nf6 {[%clk 0:02:43]} 5. Nbd2 {[%clk 0:02:55]}  Ng4 {[%clk 0:02:37]} 6. Bc4 {[%clk 0:02:43]}  O-O {[%clk 0:02:32]} 7. O-O {[%clk 0:02:42]}  Qc7 {[%clk 0:02:27]} 8. c3 {[%clk 0:02:35]}  Nxe3 {[%clk 0:02:25]} 9. fxe3 {[%clk 0:02:36]}  Nc6 {[%clk 0:02:21]} 10. Bb3 {[%clk 0:02:31]}  d6 {[%clk 0:02:15]} 11. Qe1 {[%clk 0:02:26]}  Na5 {[%clk 0:02:03]} 12. Bc2 {[%clk 0:02:20]}  e5 {[%clk 0:01:51]} 13. Rc1 {[%clk 0:01:38]}  b5 {[%clk 0:01:45]} 14. Qh4 {[%clk 0:01:36]}  Qd8 {[%clk 0:01:42]} 15. Qxd8 {[%clk 0:00:58]}  Rxd8 {[%clk 0:01:40]} 16. b4 {[%clk 0:00:59]}  Nc6 {[%clk 0:01:18]} 17. bxc5 {[%clk 0:00:54]}  dxc5 {[%clk 0:01:17]} 18. dxc5 {[%clk 0:00:52]}  Bf8 {[%clk 0:01:09]} 19. Nb3 {[%clk 0:00:33]}  a5 {[%clk 0:01:09]} 20. Kf2 {[%clk 0:00:10]}  a4 {[%clk 0:01:06]} 21. Nbd2 {[%clk 0:00:10]}  Bxc5 {[%clk 0:01:06]} 22. Ke2 {[%clk 0:00:10]}  Be6 {[%clk 0:01:06]} 23. Ng5 {[%clk 0:00:09]}  Bxa2 {[%clk 0:00:53]} 24. Ra1 {[%clk 0:00:10]}  Bc4+ {[%clk 0:00:46]} 25. Nxc4 {[%clk 0:00:09]}  bxc4 {[%clk 0:00:46]} 26. Rxa4 {[%clk 0:00:08]}  Rxa4 {[%clk 0:00:40]} 27. Bxa4 {[%clk 0:00:09]}  Na5 {[%clk 0:00:40]} 28. Nxf7 {[%clk 0:00:08]}  Rd3 {[%clk 0:00:40]} 29. Nxe5 {[%clk 0:00:08]}  Rxc3 {[%clk 0:00:34]} 30. Nd7 {[%clk 0:00:08]}  Rxe3+ {[%clk 0:00:33]} 31. Kd2 {[%clk 0:00:08]}  Rd3+ {[%clk 0:00:32]} 32. Kc2 {[%clk 0:00:07]}  Bb4 {[%clk 0:00:29]} 33. e5 {[%clk 0:00:06]}  Rd2+ {[%clk 0:00:27]} 34. Kb1 {[%clk 0:00:07]}  Nb3 {[%clk 0:00:27]} 35. Bxb3 {[%clk 0:00:06]}  cxb3 {[%clk 0:00:28]} 36. e6 {[%clk 0:00:06]}  Re2 {[%clk 0:00:23]} 37. Nf6+ {[%clk 0:00:06]}  Kg7 {[%clk 0:00:23]} 38. Ne8+ {[%clk 0:00:06]}  Kh6 {[%clk 0:00:22]} 39. Nc7 {[%clk 0:00:06]}  Bc3 {[%clk 0:00:20]} 40. Nd5 {[%clk 0:00:05]}  Bd4 {[%clk 0:00:17]} 41. e7 {[%clk 0:00:05]}  Ra2 {[%clk 0:00:16]} 42. Kc1 {[%clk 0:00:04]}  Ra1+ {[%clk 0:00:12]} 43. Kd2 {[%clk 0:00:03]}  Rxf1 {[%clk 0:00:08]} 44. e8=Q {[%clk 0:00:04]}  b2 {[%clk 0:00:09]} 45. Qf8+ {[%clk 0:00:03]}  Rxf8 {[%clk 0:00:08]} 46. Kc2 {[%clk 0:00:02]}  Rf2+ {[%clk 0:00:06]} 0-1


[Site "https://www.chess.com"]

[Event "Titled Tuesday Blitz July 26 Late 2022"]
[White "Quesada Perez, Yuniesky"]
[Black "Karas, Marek"]
[WhiteFideId "3504409"]
[BlackFideId "14928558"]
[WhiteElo "2599"]
[BlackElo "2250"]
[Result "0-1"]
[Round "03"]
[TimeControl "180+1"]
[Date "2022.07.27"]
[WhiteClock "0:00:04"]
[BlackClock "0:00:17"]

1. e4 {[%clk 0:01:34]}  e6 {[%clk 0:02:58]} 2. d4 {[%clk 0:01:34]}  d5 {[%clk 0:02:57]} 3. e5 {[%clk 0:01:33]}  c5 {[%clk 0:02:57]} 4. c3 {[%clk 0:01:33]}  Nc6 {[%clk 0:02:58]} 5. Nf3 {[%clk 0:01:32]}  Qb6 {[%clk 0:02:58]} 6. a3 {[%clk 0:01:32]}  c4 {[%clk 0:02:58]} 7. Nbd2 {[%clk 0:01:32]}  Na5 {[%clk 0:02:58]} 8. Be2 {[%clk 0:01:31]}  Bd7 {[%clk 0:02:58]} 9. O-O {[%clk 0:01:31]}  Ne7 {[%clk 0:02:58]} 10. Re1 {[%clk 0:01:31]}  Nc8 {[%clk 0:02:58]} 11. Nf1 {[%clk 0:01:30]}  Qc7 {[%clk 0:02:57]} 12. Bf4 {[%clk 0:01:26]}  Nb6 {[%clk 0:02:57]} 13. h4 {[%clk 0:01:25]}  h6 {[%clk 0:02:56]} 14. Rb1 {[%clk 0:01:23]}  Ba4 {[%clk 0:02:54]} 15. Qd2 {[%clk 0:01:23]}  Nb3 {[%clk 0:02:53]} 16. Qe3 {[%clk 0:01:24]}  O-O-O {[%clk 0:02:52]} 17. h5 {[%clk 0:01:24]}  Be7 {[%clk 0:02:50]} 18. N3h2 {[%clk 0:01:21]}  Kb8 {[%clk 0:02:46]} 19. Bg4 {[%clk 0:01:22]}  Ka8 {[%clk 0:02:45]} 20. Qe2 {[%clk 0:01:20]}  Rdf8 {[%clk 0:02:43]} 21. Bg3 {[%clk 0:01:20]}  Bd7 {[%clk 0:02:32]} 22. Ne3 {[%clk 0:01:19]}  g6 {[%clk 0:02:18]} 23. Rf1 {[%clk 0:01:18]}  Rhg8 {[%clk 0:02:11]} 24. Rbd1 {[%clk 0:01:17]}  Na4 {[%clk 0:02:04]} 25. Nxd5 {[%clk 0:01:10]}  exd5 {[%clk 0:01:55]} 26. e6 {[%clk 0:01:11]}  Bd6 {[%clk 0:01:52]} 27. Bxd6 {[%clk 0:01:10]}  Qxd6 {[%clk 0:01:52]} 28. exd7 {[%clk 0:01:10]}  f5 {[%clk 0:01:49]} 29. Bf3 {[%clk 0:01:07]}  Qxd7 {[%clk 0:01:03]} 30. hxg6 {[%clk 0:01:06]}  Rxg6 {[%clk 0:01:02]} 31. Rfe1 {[%clk 0:01:06]}  Rgg8 {[%clk 0:00:58]} 32. Nf1 {[%clk 0:01:04]}  a6 {[%clk 0:00:57]} 33. Ne3 {[%clk 0:01:03]}  Nb6 {[%clk 0:00:43]} 34. Qc2 {[%clk 0:01:01]}  f4 {[%clk 0:00:42]} 35. Nf1 {[%clk 0:00:57]}  Qh3 {[%clk 0:00:38]} 36. Ng3 {[%clk 0:00:55]}  Qd7 {[%clk 0:00:30]} 37. Nh5 {[%clk 0:00:47]}  Qh3 {[%clk 0:00:28]} 38. Ng3 {[%clk 0:00:18]}  Qd7 {[%clk 0:00:27]} 39. Nf1 {[%clk 0:00:09]}  Qh3 {[%clk 0:00:27]} 40. Qh7 {[%clk 0:00:09]}  Qxf3 {[%clk 0:00:22]} 41. Ng3 {[%clk 0:00:04]}  Qg4 {[%clk 0:00:17]} 0-1


[Site "https://www.chess.com"]

[Event "Titled Tuesday Blitz July 26 Late 2022"]
[White "Rustemov, Alexander"]
[Black "Danielyan, Vahe"]
[WhiteFideId "4119002"]
[BlackFideId "13304828"]
[WhiteElo "2805"]
[BlackElo "2419"]
[Result "1-0"]
[Round "03"]
[TimeControl "180+1"]
[Date "2022.07.26"]
[WhiteClock "0:00:31"]
[BlackClock "0:00:53"]

1. d4 {[%clk 0:03:00]}  g6 {[%clk 0:02:59]} 2. c4 {[%clk 0:03:00]}  Bg7 {[%clk 0:02:59]} 3. Nf3 {[%clk 0:03:01]}  c5 {[%clk 0:02:59]} 4. d5 {[%clk 0:03:00]}  Nf6 {[%clk 0:02:59]} 5. Nc3 {[%clk 0:03:00]}  O-O {[%clk 0:03:00]} 6. e4 {[%clk 0:03:00]}  d6 {[%clk 0:03:00]} 7. h3 {[%clk 0:02:59]}  a6 {[%clk 0:03:00]} 8. a4 {[%clk 0:02:58]}  e5 {[%clk 0:03:01]} 9. g4 {[%clk 0:02:50]}  h5 {[%clk 0:03:00]} 10. Nh2 {[%clk 0:02:47]}  Nbd7 {[%clk 0:02:49]} 11. Be2 {[%clk 0:02:46]}  h4 {[%clk 0:02:48]} 12. Bg5 {[%clk 0:02:43]}  Qb6 {[%clk 0:02:48]} 13. Qd2 {[%clk 0:02:32]}  Nh7 {[%clk 0:02:48]} 14. Bxh4 {[%clk 0:02:32]}  Qb4 {[%clk 0:02:45]} 15. a5 {[%clk 0:02:23]}  b5 {[%clk 0:02:43]} 16. cxb5 {[%clk 0:02:08]}  axb5 {[%clk 0:02:41]} 17. Bxb5 {[%clk 0:02:08]}  g5 {[%clk 0:02:35]} 18. Bg3 {[%clk 0:02:07]}  Rb8 {[%clk 0:02:32]} 19. Ra4 {[%clk 0:01:54]}  Qb3 {[%clk 0:02:21]} 20. Bc4 {[%clk 0:01:52]}  Qxb2 {[%clk 0:02:07]} 21. Nf3 {[%clk 0:01:37]}  Bf6 {[%clk 0:01:48]} 22. Ke2 {[%clk 0:01:33]}  Qxd2+ {[%clk 0:01:40]} 23. Nxd2 {[%clk 0:01:31]}  Bd8 {[%clk 0:01:40]} 24. Bb5 {[%clk 0:01:22]}  Nhf6 {[%clk 0:01:38]} 25. f3 {[%clk 0:01:17]}  Ne8 {[%clk 0:01:38]} 26. Rb1 {[%clk 0:01:09]}  Nc7 {[%clk 0:01:36]} 27. Bxd7 {[%clk 0:00:58]}  Rxb1 {[%clk 0:01:35]} 28. Bxc8 {[%clk 0:00:56]}  Rb4 {[%clk 0:01:29]} 29. a6 {[%clk 0:00:47]}  Na8 {[%clk 0:01:24]} 30. Nc4 {[%clk 0:00:41]}  Nb6 {[%clk 0:01:24]} 31. Nxb6 {[%clk 0:00:38]}  Bxb6 {[%clk 0:01:25]} 32. Bb7 {[%clk 0:00:38]}  Rb2+ {[%clk 0:01:23]} 33. Kd3 {[%clk 0:00:38]}  Ba7 {[%clk 0:01:21]} 34. Be1 {[%clk 0:00:37]}  Rb8 {[%clk 0:01:18]} 35. Bd2 {[%clk 0:00:36]}  f6 {[%clk 0:01:14]} 36. Ra2 {[%clk 0:00:36]}  Rb4 {[%clk 0:01:13]} 37. Kc2 {[%clk 0:00:36]}  Kf7 {[%clk 0:01:10]} 38. Rb2 {[%clk 0:00:36]}  Rh8 {[%clk 0:01:08]} 39. Rxb4 {[%clk 0:00:34]}  cxb4 {[%clk 0:01:09]} 40. Nd1 {[%clk 0:00:33]}  Bc5 {[%clk 0:01:07]} 41. Be3 {[%clk 0:00:34]}  b3+ {[%clk 0:00:52]} 42. Kxb3 {[%clk 0:00:33]}  Rb8 {[%clk 0:00:53]} 43. Bxc5 {[%clk 0:00:31]}  dxc5 {[%clk 0:00:53]} 44. Kc4 {[%clk 0:00:31]} 1-0


[Site "https://www.chess.com"]

[Event "Titled Tuesday Blitz July 26 Late 2022"]
[White "Toncheva, Nadya"]
[Black "Nagy, Gabor"]
[WhiteFideId "2924056"]
[BlackFideId "737119"]
[WhiteElo "1888"]
[BlackElo "2530"]
[Result "0-1"]
[Round "03"]
[TimeControl "180+1"]
[Date "2022.07.26"]
[WhiteClock "0:00:04"]
[BlackClock "0:01:34"]

1. e4 {[%clk 0:03:00]}  Nf6 {[%clk 0:02:59]} 2. e5 {[%clk 0:02:59]}  Nd5 {[%clk 0:03:00]} 3. c4 {[%clk 0:03:00]}  Nb6 {[%clk 0:03:00]} 4. d4 {[%clk 0:03:00]}  d6 {[%clk 0:03:00]} 5. exd6 {[%clk 0:02:58]}  cxd6 {[%clk 0:03:01]} 6. Nc3 {[%clk 0:02:57]}  g6 {[%clk 0:03:01]} 7. Nf3 {[%clk 0:02:56]}  Bg7 {[%clk 0:03:01]} 8. Be2 {[%clk 0:02:54]}  O-O {[%clk 0:03:01]} 9. Be3 {[%clk 0:02:53]}  Bg4 {[%clk 0:03:01]} 10. b3 {[%clk 0:02:50]}  Nc6 {[%clk 0:03:00]} 11. O-O {[%clk 0:02:49]}  d5 {[%clk 0:02:57]} 12. c5 {[%clk 0:02:48]}  Nc8 {[%clk 0:02:58]} 13. h3 {[%clk 0:02:47]}  Bxf3 {[%clk 0:02:58]} 14. Bxf3 {[%clk 0:02:45]}  e6 {[%clk 0:02:59]} 15. Rb1 {[%clk 0:02:32]}  N8e7 {[%clk 0:02:59]} 16. b4 {[%clk 0:02:18]}  Nf5 {[%clk 0:02:57]} 17. Ne2 {[%clk 0:02:18]}  a6 {[%clk 0:02:52]} 18. a4 {[%clk 0:02:17]}  Nh4 {[%clk 0:02:52]} 19. b5 {[%clk 0:01:54]}  Nxf3+ {[%clk 0:02:49]} 20. gxf3 {[%clk 0:01:54]}  axb5 {[%clk 0:02:49]} 21. axb5 {[%clk 0:01:53]}  Na5 {[%clk 0:02:50]} 22. Qc1 {[%clk 0:01:39]}  Nc4 {[%clk 0:02:47]} 23. Bg5 {[%clk 0:01:38]}  Bf6 {[%clk 0:02:44]} 24. Bxf6 {[%clk 0:00:56]}  Qxf6 {[%clk 0:02:45]} 25. Kg2 {[%clk 0:00:55]}  Ra3 {[%clk 0:02:36]} 26. Qf4 {[%clk 0:00:55]}  Qe7 {[%clk 0:02:30]} 27. Ra1 {[%clk 0:00:50]}  Rfa8 {[%clk 0:02:30]} 28. Rxa3 {[%clk 0:00:46]}  Rxa3 {[%clk 0:02:31]} 29. c6 {[%clk 0:00:40]}  bxc6 {[%clk 0:02:30]} 30. bxc6 {[%clk 0:00:41]}  Ra7 {[%clk 0:02:19]} 31. Rb1 {[%clk 0:00:37]}  Rc7 {[%clk 0:02:15]} 32. Qh6 {[%clk 0:00:27]}  Qf8 {[%clk 0:02:15]} 33. Qf4 {[%clk 0:00:20]}  Rxc6 {[%clk 0:02:14]} 34. Rb7 {[%clk 0:00:21]}  Nd6 {[%clk 0:02:12]} 35. Ra7 {[%clk 0:00:18]}  Qb8 {[%clk 0:02:04]} 36. Rd7 {[%clk 0:00:16]}  Qf8 {[%clk 0:01:57]} 37. Ra7 {[%clk 0:00:16]}  Rc8 {[%clk 0:01:49]} 38. h4 {[%clk 0:00:15]}  h5 {[%clk 0:01:48]} 39. Ng1 {[%clk 0:00:13]}  Nf5 {[%clk 0:01:47]} 40. Nh3 {[%clk 0:00:11]}  Qg7 {[%clk 0:01:46]} 41. Ng5 {[%clk 0:00:08]}  Rf8 {[%clk 0:01:46]} 42. Ra4 {[%clk 0:00:07]}  Re8 {[%clk 0:01:42]} 43. Ra7 {[%clk 0:00:06]}  Re7 {[%clk 0:01:36]} 44. Ra8+ {[%clk 0:00:05]}  Qf8 {[%clk 0:01:34]} 45. Rxf8+ {[%clk 0:00:05]}  Kxf8 {[%clk 0:01:35]} 46. Qe5 {[%clk 0:00:05]}  Kg8 {[%clk 0:01:35]} 47. Qf6 {[%clk 0:00:04]}  Rd7 {[%clk 0:01:35]} 48. Nxe6 {[%clk 0:00:04]}  fxe6 {[%clk 0:01:33]} 49. Qxe6+ {[%clk 0:00:04]}  Rf7 {[%clk 0:01:33]} 50. Qxd5 {[%clk 0:00:04]}  Nxh4+ {[%clk 0:01:33]} 51. Kf1 {[%clk 0:00:03]}  Nf5 {[%clk 0:01:34]} 52. Qd8+ {[%clk 0:00:03]}  Rf8 {[%clk 0:01:34]} 53. d5 {[%clk 0:00:04]}  Rxd8 {[%clk 0:01:34]} 0-1


[Site "https://www.chess.com"]

[Event "Titled Tuesday Blitz July 26 Late 2022"]
[White "Weetik, Vjacheslav"]
[Black "Vovk, Orest"]
[WhiteFideId "4153472"]
[BlackFideId "14113490"]
[WhiteElo "2469"]
[BlackElo "2203"]
[Result "1-0"]
[Round "03"]
[TimeControl "180+1"]
[Date "2022.07.26"]
[WhiteClock "0:00:03"]
[BlackClock "0:00:02"]

1. d4 {[%clk 0:02:59]}  h6 {[%clk 0:02:57]} 2. e4 {[%clk 0:02:57]}  g5 {[%clk 0:02:54]} 3. h4 {[%clk 0:02:56]}  g4 {[%clk 0:02:54]} 4. Qxg4 {[%clk 0:02:55]}  d5 {[%clk 0:02:54]} 5. Qg3 {[%clk 0:02:45]}  dxe4 {[%clk 0:02:52]} 6. Nc3 {[%clk 0:02:45]}  Nf6 {[%clk 0:02:42]} 7. Bc4 {[%clk 0:02:32]}  Rg8 {[%clk 0:02:39]} 8. Qe3 {[%clk 0:02:13]}  Rxg2 {[%clk 0:02:25]} 9. Nge2 {[%clk 0:02:10]}  Ng4 {[%clk 0:02:14]} 10. Qxe4 {[%clk 0:02:09]}  Rxf2 {[%clk 0:02:08]} 11. Bf4 {[%clk 0:01:45]}  f5 {[%clk 0:01:50]} 12. Qd3 {[%clk 0:01:35]}  Nc6 {[%clk 0:01:22]} 13. O-O-O {[%clk 0:01:11]}  e5 {[%clk 0:01:14]} 14. dxe5 {[%clk 0:00:47]}  Qxd3 {[%clk 0:01:13]} 15. Rxd3 {[%clk 0:00:44]}  Ncxe5 {[%clk 0:01:08]} 16. Bxe5 {[%clk 0:00:36]}  Nxe5 {[%clk 0:01:09]} 17. Re3 {[%clk 0:00:35]}  Bd6 {[%clk 0:01:08]} 18. Rg1 {[%clk 0:00:19]}  f4 {[%clk 0:01:03]} 19. Re4 {[%clk 0:00:15]}  f3 {[%clk 0:00:28]} 20. Nd4 {[%clk 0:00:12]}  Rg2 {[%clk 0:00:22]} 21. Rf1 {[%clk 0:00:09]}  Bg4 {[%clk 0:00:12]} 22. Be6 {[%clk 0:00:04]}  Bxe6 {[%clk 0:00:07]} 23. Nxe6 {[%clk 0:00:05]}  Kd7 {[%clk 0:00:07]} 24. Nd4 {[%clk 0:00:06]}  Rf8 {[%clk 0:00:05]} 25. Nd5 {[%clk 0:00:02]}  f2 {[%clk 0:00:04]} 26. Ne3 {[%clk 0:00:02]}  Rg1 {[%clk 0:00:04]} 27. Kd1 {[%clk 0:00:02]}  Nf3 {[%clk 0:00:02]} 28. Nxf3 {[%clk 0:00:02]}  Rxf3 {[%clk 0:00:02]} 29. Ke2 {[%clk 0:00:03]} 1-0


[Site "https://www.chess.com"]

[Event "Titled Tuesday Blitz July 26 Late 2022"]
[White "Zhigalko, Sergei"]
[Black "Nozdrachev, Leonid"]
[WhiteFideId "13502956"]
[BlackFideId "24113433"]
[WhiteElo "2662"]
[BlackElo "2100"]
[Result "1-0"]
[Round "03"]
[TimeControl "180+1"]
[Date "2022.07.27"]
[WhiteClock "0:00:07"]
[BlackClock "0:00:06"]

1. e4 {[%clk 0:03:00]}  d6 {[%clk 0:02:59]} 2. d4 {[%clk 0:03:00]}  Nf6 {[%clk 0:03:00]} 3. Nc3 {[%clk 0:03:00]}  e5 {[%clk 0:02:58]} 4. Nf3 {[%clk 0:03:00]}  Nbd7 {[%clk 0:02:59]} 5. Bc4 {[%clk 0:03:01]}  Be7 {[%clk 0:02:59]} 6. O-O {[%clk 0:03:01]}  O-O {[%clk 0:02:59]} 7. a4 {[%clk 0:03:02]}  c6 {[%clk 0:02:59]} 8. Re1 {[%clk 0:03:02]}  Re8 {[%clk 0:02:59]} 9. Ng5 {[%clk 0:02:50]}  Rf8 {[%clk 0:02:58]} 10. Be3 {[%clk 0:02:42]}  d5 {[%clk 0:02:40]} 11. exd5 {[%clk 0:02:18]}  cxd5 {[%clk 0:02:41]} 12. Ba2 {[%clk 0:02:09]}  e4 {[%clk 0:02:20]} 13. a5 {[%clk 0:01:57]}  Bb4 {[%clk 0:02:15]} 14. Bd2 {[%clk 0:01:53]}  h6 {[%clk 0:01:58]} 15. Nh3 {[%clk 0:01:48]}  Bxa5 {[%clk 0:01:58]} 16. Nf4 {[%clk 0:01:38]}  Nb6 {[%clk 0:01:54]} 17. Nxe4 {[%clk 0:01:34]}  Nxe4 {[%clk 0:01:38]} 18. Bxa5 {[%clk 0:01:32]}  Qf6 {[%clk 0:01:25]} 19. Qf3 {[%clk 0:00:51]}  Qxd4 {[%clk 0:01:05]} 20. c3 {[%clk 0:00:50]}  Qd2 {[%clk 0:00:54]} 21. Re2 {[%clk 0:00:41]}  Ng5 {[%clk 0:00:23]} 22. Rxd2 {[%clk 0:00:39]}  Nxf3+ {[%clk 0:00:23]} 23. gxf3 {[%clk 0:00:40]}  Nc4 {[%clk 0:00:22]} 24. Rxd5 {[%clk 0:00:20]}  Nxb2 {[%clk 0:00:15]} 25. Bb3 {[%clk 0:00:16]}  g5 {[%clk 0:00:15]} 26. Nh5 {[%clk 0:00:12]}  Be6 {[%clk 0:00:15]} 27. Rb5 {[%clk 0:00:12]}  Nd3 {[%clk 0:00:07]} 28. Bxe6 {[%clk 0:00:09]}  fxe6 {[%clk 0:00:08]} 29. Rxb7 {[%clk 0:00:09]}  Rxf3 {[%clk 0:00:06]} 30. Bb6 {[%clk 0:00:07]} 1-0


[Site "https://www.chess.com"]

[Event "Titled Tuesday Blitz July 26 Late 2022"]
[White "Agasarov, Benik"]
[Black "Fiedorek, Michal"]
[WhiteFideId "13314823"]
[BlackFideId "1199528"]
[WhiteElo "2618"]
[BlackElo "1833"]
[Result "1/2-1/2"]
[Round "04"]
[TimeControl "180+1"]
[Date "2022.07.27"]
[WhiteClock "0:01:28"]
[BlackClock "0:00:03"]

1. Nf3 {[%clk 0:03:00]}  Nf6 {[%clk 0:02:55]} 2. b3 {[%clk 0:03:01]}  g6 {[%clk 0:02:55]} 3. Bb2 {[%clk 0:03:02]}  Bg7 {[%clk 0:02:56]} 4. e3 {[%clk 0:03:02]}  O-O {[%clk 0:02:56]} 5. Be2 {[%clk 0:03:03]}  d6 {[%clk 0:02:56]} 6. O-O {[%clk 0:03:03]}  e5 {[%clk 0:02:54]} 7. d4 {[%clk 0:03:03]}  e4 {[%clk 0:02:53]} 8. Nfd2 {[%clk 0:03:03]}  d5 {[%clk 0:02:53]} 9. c4 {[%clk 0:03:03]}  c6 {[%clk 0:02:53]} 10. Ba3 {[%clk 0:03:02]}  Re8 {[%clk 0:02:53]} 11. Nc3 {[%clk 0:03:03]}  h5 {[%clk 0:02:52]} 12. cxd5 {[%clk 0:03:03]}  cxd5 {[%clk 0:02:53]} 13. Nb5 {[%clk 0:03:03]}  Nc6 {[%clk 0:02:37]} 14. Nd6 {[%clk 0:03:01]}  Re6 {[%clk 0:02:33]} 15. Nxc8 {[%clk 0:02:59]}  Rxc8 {[%clk 0:02:31]} 16. Rc1 {[%clk 0:02:58]}  Qa5 {[%clk 0:02:31]} 17. Nb1 {[%clk 0:02:48]}  Ree8 {[%clk 0:02:27]} 18. Qd2 {[%clk 0:02:47]}  Qd8 {[%clk 0:02:15]} 19. b4 {[%clk 0:02:43]}  Ne7 {[%clk 0:02:11]} 20. b5 {[%clk 0:02:41]}  Nf5 {[%clk 0:02:08]} 21. Rxc8 {[%clk 0:02:38]}  Qxc8 {[%clk 0:02:08]} 22. Rc1 {[%clk 0:02:39]}  Qd7 {[%clk 0:02:07]} 23. Nc3 {[%clk 0:02:39]}  Rc8 {[%clk 0:02:06]} 24. Na4 {[%clk 0:02:38]}  b6 {[%clk 0:02:04]} 25. Nb2 {[%clk 0:02:35]}  h4 {[%clk 0:01:58]} 26. h3 {[%clk 0:02:35]}  Rc7 {[%clk 0:01:47]} 27. Nd1 {[%clk 0:02:34]}  Qc8 {[%clk 0:01:47]} 28. Rxc7 {[%clk 0:02:34]}  Qxc7 {[%clk 0:01:47]} 29. Qc3 {[%clk 0:02:34]}  Qxc3 {[%clk 0:01:46]} 30. Nxc3 {[%clk 0:02:35]}  Bf8 {[%clk 0:01:45]} 31. Bb2 {[%clk 0:02:32]}  Bb4 {[%clk 0:01:41]} 32. Nb1 {[%clk 0:02:29]}  Kf8 {[%clk 0:01:34]} 33. a3 {[%clk 0:02:28]}  Bd6 {[%clk 0:01:34]} 34. a4 {[%clk 0:02:28]}  Ke7 {[%clk 0:01:34]} 35. Bc3 {[%clk 0:02:28]}  Kd7 {[%clk 0:01:30]} 36. Bd1 {[%clk 0:02:28]}  Ke6 {[%clk 0:01:23]} 37. Bb3 {[%clk 0:02:28]}  Ne7 {[%clk 0:01:19]} 38. Bd2 {[%clk 0:02:27]}  g5 {[%clk 0:01:18]} 39. Nc3 {[%clk 0:02:27]}  Ba3 {[%clk 0:01:10]} 40. f3 {[%clk 0:02:26]}  exf3 {[%clk 0:01:07]} 41. gxf3 {[%clk 0:02:26]}  Bb2 {[%clk 0:01:07]} 42. e4 {[%clk 0:02:25]}  Bxc3 {[%clk 0:01:01]} 43. Bxc3 {[%clk 0:02:26]}  Nh5 {[%clk 0:01:00]} 44. Bd2 {[%clk 0:02:25]}  Nf4 {[%clk 0:00:59]} 45. Bxf4 {[%clk 0:02:23]}  gxf4 {[%clk 0:00:59]} 46. Kf2 {[%clk 0:02:22]}  Kd6 {[%clk 0:00:59]} 47. Bc2 {[%clk 0:02:22]}  Ke6 {[%clk 0:00:45]} 48. Ke2 {[%clk 0:02:20]}  f5 {[%clk 0:00:45]} 49. e5 {[%clk 0:02:13]}  Ng8 {[%clk 0:00:43]} 50. Bb3 {[%clk 0:02:10]}  Nh6 {[%clk 0:00:40]} 51. Kf2 {[%clk 0:02:10]}  Nf7 {[%clk 0:00:40]} 52. Kg2 {[%clk 0:02:10]}  Ng5 {[%clk 0:00:41]} 53. Ba2 {[%clk 0:02:10]}  Nf7 {[%clk 0:00:41]} 54. Bb3 {[%clk 0:02:10]}  Ng5 {[%clk 0:00:41]} 55. Bd1 {[%clk 0:02:10]}  Nh7 {[%clk 0:00:40]} 56. Be2 {[%clk 0:02:10]}  Nf8 {[%clk 0:00:40]} 57. Bf1 {[%clk 0:02:11]}  Ng6 {[%clk 0:00:40]} 58. Kf2 {[%clk 0:02:11]}  Ne7 {[%clk 0:00:39]} 59. Ke2 {[%clk 0:02:11]}  Ng8 {[%clk 0:00:35]} 60. Kd3 {[%clk 0:02:11]}  Nh6 {[%clk 0:00:35]} 61. Kc3 {[%clk 0:02:11]}  Nf7 {[%clk 0:00:35]} 62. Kb4 {[%clk 0:02:11]}  Nd8 {[%clk 0:00:33]} 63. a5 {[%clk 0:02:09]}  Nb7 {[%clk 0:00:33]} 64. a6 {[%clk 0:02:07]}  Nd8 {[%clk 0:00:33]} 65. Kc3 {[%clk 0:02:06]}  Nf7 {[%clk 0:00:33]} 66. Kd2 {[%clk 0:02:06]}  Ng5 {[%clk 0:00:33]} 67. Bg2 {[%clk 0:02:07]}  Kd7 {[%clk 0:00:31]} 68. Kc3 {[%clk 0:02:02]}  Ne6 {[%clk 0:00:31]} 69. Bf1 {[%clk 0:02:01]}  Nc7 {[%clk 0:00:30]} 70. Bd3 {[%clk 0:01:59]}  Ke6 {[%clk 0:00:30]} 71. Kd2 {[%clk 0:01:59]}  Ne8 {[%clk 0:00:30]} 72. Ke2 {[%clk 0:01:58]}  Ng7 {[%clk 0:00:31]} 73. Kd2 {[%clk 0:01:55]}  Nh5 {[%clk 0:00:30]} 74. Bf1 {[%clk 0:01:53]}  Ng3 {[%clk 0:00:31]} 75. Bg2 {[%clk 0:01:53]}  Kd7 {[%clk 0:00:27]} 76. Kd3 {[%clk 0:01:53]}  Ke6 {[%clk 0:00:27]} 77. Kd2 {[%clk 0:01:53]}  Kf7 {[%clk 0:00:26]} 78. Ke1 {[%clk 0:01:53]}  Ke7 {[%clk 0:00:26]} 79. Kf2 {[%clk 0:01:53]}  Ke6 {[%clk 0:00:27]} 80. Bf1 {[%clk 0:01:54]}  Nh1+ {[%clk 0:00:22]} 81. Kg2 {[%clk 0:01:49]}  Ng3 {[%clk 0:00:23]} 82. Bd3 {[%clk 0:01:48]}  Nh5 {[%clk 0:00:22]} 83. Kf2 {[%clk 0:01:49]}  Ng7 {[%clk 0:00:22]} 84. Ke2 {[%clk 0:01:49]}  Ne8 {[%clk 0:00:21]} 85. Kd2 {[%clk 0:01:49]}  Nc7 {[%clk 0:00:21]} 86. Kc3 {[%clk 0:01:49]}  Ne8 {[%clk 0:00:21]} 87. Bf1 {[%clk 0:01:48]}  Ng7 {[%clk 0:00:20]} 88. Bg2 {[%clk 0:01:49]}  Kd7 {[%clk 0:00:19]} 89. Kd3 {[%clk 0:01:48]}  Ne6 {[%clk 0:00:20]} 90. Bf1 {[%clk 0:01:47]}  Nc7 {[%clk 0:00:18]} 91. Kc3 {[%clk 0:01:47]}  Ne8 {[%clk 0:00:16]} 92. Bd3 {[%clk 0:01:46]}  Ke6 {[%clk 0:00:16]} 93. Bf1 {[%clk 0:01:46]}  Ng7 {[%clk 0:00:16]} 94. Bg2 {[%clk 0:01:46]}  Nh5 {[%clk 0:00:16]} 95. Kd2 {[%clk 0:01:44]}  Ng3 {[%clk 0:00:15]} 96. Ke1 {[%clk 0:01:45]}  Nh5 {[%clk 0:00:15]} 97. Kf2 {[%clk 0:01:44]}  Ng7 {[%clk 0:00:13]} 98. Ke2 {[%clk 0:01:44]}  Kd7 {[%clk 0:00:13]} 99. Kd3 {[%clk 0:01:45]}  Ne6 {[%clk 0:00:13]} 100. Bf1 {[%clk 0:01:45]}  Nc7 {[%clk 0:00:13]} 101. Be2 {[%clk 0:01:45]}  Nxb5 {[%clk 0:00:13]} 102. Bd1 {[%clk 0:01:46]}  Nc7 {[%clk 0:00:13]} 103. Kc3 {[%clk 0:01:45]}  Nxa6 {[%clk 0:00:11]} 104. Ba4+ {[%clk 0:01:42]}  Ke6 {[%clk 0:00:10]} 105. Bc6 {[%clk 0:01:39]}  Nb8 {[%clk 0:00:09]} 106. Bb7 {[%clk 0:01:39]}  Nd7 {[%clk 0:00:08]} 107. Bc8 {[%clk 0:01:38]}  Ke7 {[%clk 0:00:08]} 108. Bb7 {[%clk 0:01:38]}  Ke6 {[%clk 0:00:07]} 109. Bc8 {[%clk 0:01:39]}  a5 {[%clk 0:00:06]} 110. Kb3 {[%clk 0:01:30]}  b5 {[%clk 0:00:06]} 111. Kc3 {[%clk 0:01:29]}  Ke7 {[%clk 0:00:05]} 112. Bb7 {[%clk 0:01:29]}  Nb6 {[%clk 0:00:05]} 113. Bc6 {[%clk 0:01:29]}  b4+ {[%clk 0:00:04]} 114. Kb3 {[%clk 0:01:29]}  Ke6 {[%clk 0:00:03]} 115. Be8 {[%clk 0:01:28]}  Ke7 {[%clk 0:00:03]} 116. Bc6 {[%clk 0:01:28]}  Kd8 {[%clk 0:00:03]} 117. Bb5 {[%clk 0:01:26]}  Kc7 {[%clk 0:00:03]} 118. Bd3 {[%clk 0:01:26]}  Kd8 {[%clk 0:00:02]} 119. Bxf5 {[%clk 0:01:27]}  Ke7 {[%clk 0:00:02]} 120. Bd3 {[%clk 0:01:27]}  Ke6 {[%clk 0:00:03]} 121. Bb5 {[%clk 0:01:27]}  Ke7 {[%clk 0:00:03]} 122. Bc6 {[%clk 0:01:27]}  Ke6 {[%clk 0:00:03]} 123. Bb5 {[%clk 0:01:27]}  Ke7 {[%clk 0:00:03]} 124. Bc6 {[%clk 0:01:28]}  Kd8 {[%clk 0:00:03]} 125. Bb5 {[%clk 0:01:27]}  Kc7 {[%clk 0:00:03]} 126. Bd3 {[%clk 0:01:27]}  Kd7 {[%clk 0:00:03]} 127. Bf5+ {[%clk 0:01:26]}  Ke7 {[%clk 0:00:03]} 128. Bd3 {[%clk 0:01:27]}  Ke6 {[%clk 0:00:03]} 129. Bb5 {[%clk 0:01:28]} 1/2-1/2


[Site "https://www.chess.com"]